Cogmind - Beta 15 @@@ ROGUE MODE // 2025.05.07 @ 15:50:23 Player: KamenAya Result: Destroyed by 78-32U(R) with Subdweller Beam Cannon Performance ------------- Evolutions (0) 0 Regions Visited (2) 400 Robots Destroyed (10) 50 Value Destroyed (323) 323 Prototype IDs (0) 0 Alien Tech Used (0) 0 Bonus (0) 0 TOTAL SCORE: 773 Bonus ------- None Cogmind --------- Core Integrity 0/250 Matter 202/300 Energy 97/100 System Corruption 0% Temperature Warm (152) Movement Core (100) Ox1 Location -10/Subcaves Parts ------- > --- POWER (1) -------- (None) > --- PROPULSION (2) --- (None) > --- UTILITY (2) ------ Improved Heat Sink > --- WEAPON (2) ------- Barrage Gun > --- INVENTORY (5) ---- Structural Scanner Sensor Array Signal Interpreter Subdweller Shrapnel Launcher Mining Laser Peak State ------------ > --- POWER ------------ Light Nuclear Core > --- PROPULSION ------- Wheel > --- UTILITY ---------- Improved Heat Sink Terrain Scanner > --- WEAPON ----------- Assault Rifle Assault Rifle > --- INVENTORY -------- (None) [Rating: 10] Favorites ----------- Power Light Nuclear Core Engine Light Ion Engine Power Core Light Nuclear Core Propulsion Wheel Wheel Wheel Utility Improved Heat Sink Device Improved Heat Sink Weapon Assault Rifle Ballistic Gun Assault Rifle Ballistic Cannon Light Cannon Special Weapon Mining Laser Build | -11 -10 -10 ------- Run | Yrd Mat Sub Slots Evolved . | . . . Power . | . . . Propulsion . | . . . Utility . | . . . Weapon . | . . . Parts Attached 16 | 4 10 2 Power 4 | 1 2 1 Engine 2 | 1 . 1 Core 2 | . 2 . Reactor . | . . . Propulsion 2 | 1 1 . Treads . | . . . Leg . | . . . Wheel 2 | 1 1 . Hover . | . . . Flight . | . . . Utility 3 | . 3 . Device 3 | . 3 . Storage . | . . . Processor . | . . . Hackware . | . . . Protection . | . . . Artifact . | . . . Weapon 7 | 2 4 1 Energy Gun . | . . . Energy Cannon . | . . . Ballistic Gun 4 | 2 1 1 Ballistic Cannon 1 | . 1 . Launcher . | . . . Special Weapon 2 | . 2 . Impact Weapon . | . . . Slashing Weapon . | . . . Piercing Weapon . | . . . Special Melee Weapon . | . . . Unidentified Prototypes . | . . . Parts Lost 9 | . 4 5 Power 4 | . 2 2 Propulsion 2 | . 1 1 Utility 1 | . . 1 Weapon 2 | . 1 1 Highest Loss Streak 4 | . 3 4 To Critical Strikes . | . . . Average Backups 2 | . 1 4 Power . | . . . Propulsion . | . . . Utility 1 | . . 3 Weapon 1 | . 1 1 Tool/Special . | . . . Unused Backups 4 | . . 4 Power . | . . . Propulsion . | . . . Utility 2 | . . 2 Weapon 2 | . . 2 Tool/Special . | . . . Average Slot Usage (%) 79 | . 77 84 Engine 4 | . 3 7 Core 9 | . 10 5 Wheel 12 | . 12 14 Device 23 | . 22 28 Ballistic Gun 18 | . 19 14 Ballistic Cannon 8 | . 6 14 Special Weapon 1 | . 1 . Peak Build Rating 10 | 4 10 10 Average Rating 8 | 2 8 9 On Entrance 4 | . 4 10 Naked Turns . | . . . Heaviest Build 13 | 6 12 13 Greatest Support 10 | 10 10 10 Greatest Overweight (x) 3 | . 3 1 Average Overweight (x) . | . . . Largest Inventory Capacity 5 | 5 5 5 Average Capacity 5 | 5 5 5 Most Carried 5 | 3 5 5 Average Carried 2 | 1 1 4 Final Capacity 5 | 5 5 5 Final Carried 5 | 1 5 5 Class Distribution -------------------- 100% | Mutant Dominant Class ---------------- Mutant | -10/Materials Mutant | -10/Subcaves Resources | -11 -10 -10 ----------- Run | Yrd Mat Sub Matter Collected 584 | 240 259 85 Remotely . | . . . Salvage Created 424 | . 351 73 Parts 18 | . 11 7 Haulers Intercepted . | . . . Recyclers Shooed 1 | . 1 . Parts Field Recycled . | . . . Retrieved Matter . | . . . Parts Self-Destructed 3 | . . 3 Prevented . | . . . Kills | -11 -10 -10 ------- Run | Yrd Mat Sub Combat Hostiles Destroyed 7 | . 5 2 Guns 5 | . 4 1 Cannons 2 | . 1 1 Classes Destroyed 4 | . 3 1 Worker 1 | . 1 . Recycler 2 | . 2 . Grunt 6 | . 5 1 Subdweller 1 | . . 1 Best Kill Streak 4 | . 4 1 Combat Bots Only 2 | . 2 1 Max Kills in Single Turn 2 | . 2 1 Gunslinging . | . . . Exploded . | . . . Melee . | . . . Uniques/NPCs Destroyed . | . . . Combat | -11 -10 -10 -------- Run | Yrd Mat Sub Hostile Shots Fired 83 | . 50 33 Missed 23 | . 14 9 Hits 60 | . 36 24 Projectile 60 | . 36 24 Critical Strikes 2 | . 1 1 Damage Taken 1078 | . 592 486 Core 270 | . 153 117 Absorbed by Shields . | . . . Core Remaining (%) 100 | 100 . . Volleys Fired 53 | . 42 11 Largest 2 | . 2 2 Hottest 200 | . 200 58 Shots Fired 105 | . 84 21 Gun 78 | . 67 11 Cannon 23 | . 13 10 Launcher . | . . . Special 4 | . 4 . Kinetic 101 | . 80 21 Thermal 4 | . 4 . Explosive . | . . . Electromagnetic . | . . . Robot Hit Streak 5 | . 5 5 Robot Miss Streak 4 | . 4 2 Penetration Max . | . . . Secondary Targets . | . . . Shots Hit Robots 55 | . 44 11 Core Hits 23 | . 18 5 Critical Kills . | . . . Critical Parts Destroyed . | . . . Critical Strikes . | . . . Melee Attacks . | . . . Impact . | . . . Slashing . | . . . Piercing . | . . . Sneak Attacks . | . . . Combat Hostiles . | . . . Follow-up Attacks . | . . . Damage Inflicted 832 | . 617 215 Guns 549 | . 444 105 Cannons 236 | . 126 110 Explosions 23 | . 23 . Melee . | . . . Ramming . | . . . Kinetic 785 | . 570 215 Thermal 24 | . 24 . Explosive 23 | . 23 . Electromagnetic . | . . . Impact . | . . . Slashing . | . . . Piercing . | . . . Highest Corruption . | . . . Average Corruption . | . . . Corruption Purged . | . . . Corruption Blocked . | . . . Overload Shots . | . . . Overflow Damage 46 | . 46 . Projectiles . | . . . Explosions 46 | . 46 . Melee . | . . . Knockbacks 3 | . 1 2 Impact . | . . . Kinetic 2 | . 1 1 Secondary 1 | . . 1 Self-Inflicted Damage 114 | . 114 . Shots 1 | . 1 . Rammed . | . . . Targets Rammed . | . . . Kicked . | . . . Crushed . | . . . Highest Temperature 265 | . 48 265 Average Temperature 36 | . 15 204 Received Heat Transfer 703 | . 294 409 Effects 1 | . . 1 Energy Bleed 1 | . . 1 Siege Activations . | . . . Martial Activations . | . . . Shielding Activations . | . . . Robots Disrupted . | . . . Combat Hostiles . | . . . Robots Corrupted . | . . . Combat Hostiles . | . . . Parts Fried . | . . . Impact Corruptions . | . . . Robots Melted . | . . . Combat Hostiles . | . . . Parts Melted . | . . . Heat Transferred 50 | . 50 . Parts Sabotaged . | . . . Parts Stolen . | . . . Parts Stripped . | . . . Power Chain Reactions . | . . . Alert | -11 -10 -10 ------- Run | Yrd Mat Sub Maximum Alert Level . | . . . Low Security (%) 100 | 100 100 . Level 1 . | . . . Level 2 . | . . . Level 3 . | . . . Level 4 . | . . . Level 5 . | . . . High Security . | . . . Max Security . | . . . Peak Influence 79 | . 79 . Initial . | . . . Average 21 | . 23 . Influence Increases 246 | . 226 20 Destroy 0b10 Robot/C 120 | . 100 20 Destroy 0b10 Robot/NC 15 | . 15 . Destroy Leader 30 | . 30 . Disable Machine 60 | . 60 . Destroy Structure 21 | . 21 . Influence Decreases 246 | . 222 24 Entered New Map 3 | . . 3 Time Decay 203 | . 182 21 Lost Part 40 | . 40 . Squads Dispatched 1 | . 1 . Investigation . | . . . Extermination . | . . . Reinforcement 1 | . 1 . Assault . | . . . Garrison . | . . . Intercept . | . . . Searches Triggered . | . . . Construction Impeded . | . . . Haulers Reinforced . | . . . Active Scanning Responses . | . . . Cargo Convoy Interrupts . | . . . Stealth | -11 -10 -10 --------- Run | Yrd Mat Sub Distress Signals . | . . . Communications Jammed . | . . . Distress Signals . | . . . Times Spotted 20 | . 10 10 Peak Tracking Total 7 | . 4 7 Tactical Retreats . | . . . Traps | -11 -10 -10 ------- Run | Yrd Mat Sub Traps Triggered . | . . . Indirectly . | . . . Trap Hack Attempts . | . . . Triggered . | . . . Disarmed . | . . . Reprogrammed . | . . . Reused . | . . . Traps Extracted . | . . . Installed . | . . . Triggered . | . . . Machines | -11 -10 -10 ---------- Run | Yrd Mat Sub Machines Disabled 4 | . 4 . Max in Single Turn 2 | . 2 . Machines Repaired . | . . . Machines Dismantled . | . . . Machines Sabotaged . | . . . Overloaded Fab Kills . | . . . Hacking | -11 -10 -10 --------- Run | Yrd Mat Sub Machines Accessed 1 | . 1 . Terminals 1 | . 1 . Fabricators . | . . . Repair Stations . | . . . Recycling Units . | . . . Scanalyzers . | . . . Garrison Access . | . . . Total Hacks 1 | . 1 . Successful . | . . . Failed 1 | . 1 . Catastrophic . | . . . Database Lockouts . | . . . Manual . | . . . Terminals 1 | . 1 . Fabricators . | . . . Repair Stations . | . . . Recycling Units . | . . . Scanalyzers . | . . . Garrison Access . | . . . Terminal Hacks . | . . . Fabricator Hacks . | . . . Repair Station Hacks . | . . . Recycling Unit Hacks . | . . . Scanalyzer . | . . . Garrison Access Hacks . | . . . Unauthorized Hacks . | . . . Terminals . | . . . Fabricators . | . . . Repair Stations . | . . . Recycling Units . | . . . Scanalyzers . | . . . Garrison Access . | . . . Data Cores Recovered . | . . . Used . | . . . Hacking Detections . | . . . Full Trace Events . | . . . Feedback Events . | . . . Feedback Blocked . | . . . Robot Schematics Acquired . | . . . Robots Built . | . . . Authchips . | . . . Time . | . . . Total Robot Build Rating . | . . . Part Schematics Acquired . | . . . Parts Built . | . . . Authchips . | . . . Time . | . . . Total Part Build Rating . | . . . Parts Repaired . | . . . Time . | . . . Parts Recycled . | . . . Recycled Matter . | . . . Retrieved Matter . | . . . Retrieved Components . | . . . Parts Scanalyzed . | . . . Part Schematics Acquired . | . . . Parts Damaged . | . . . Bothacking | -11 -10 -10 ------------ Run | Yrd Mat Sub Used RIF Installer . | . . . Robots Hacked . | . . . Non-combat . | . . . Combat . | . . . Robot Hacks Applied . | . . . Relay Couplers Released . | . . . Fabnet Peak Effective % . | . . . Robots Rewired . | . . . Allies Hacked . | . . . Hacks Repelled . | . . . Allies | -11 -10 -10 -------- Run | Yrd Mat Sub Total Allies . | . . . Largest Group . | . . . Highest-Rated Group . | . . . Highest-Rated Ally . | . . . Total Orders . | . . . Ally Attacks . | . . . Total Damage . | . . . Kills . | . . . Allies Corrupted . | . . . Allies Melted . | . . . Intel | -11 -10 -10 ------- Run | Yrd Mat Sub Active Infowar (turns) 682 | . 512 170 Terrain 362 | . 195 167 Structural 320 | . 317 3 Robot Analysis Total . | . . . Derelict Logs Recovered . | . . . Drone Launches . | . . . Drone Recoveries . | . . . Exploration | -11 -10 -10 ------------- Run | Yrd Mat Sub Turns Passed 743 | 35 532 176 Spaces Moved 530 | 35 383 112 Core 18 | 7 11 . Treads . | . . . Legs . | . . . Wheels 512 | 28 372 112 Hover . | . . . Flight . | . . . Fastest Speed 50 | 50 80 80 Average Speed 91 | 74 92 93 Slowest Speed 200 | 80 200 95 Overloaded Moves . | . . . Propulsion Burnouts . | . . . Robots Hopped . | . . . Potential Cave-ins . | . . . Cave-ins Triggered . | . . . Exploration Rate (%) 17 | 3 39 10 Regions Visited 2 Branch Regions 1 Pre-discovered Areas . | . . . Known Exits Taken . | . . . Unknown Exits Taken 2 | 1 1 . Scrap Searched . | . . . Spaces Dug 2 | . 2 . Terrain Destroyed 33 | . 33 . Melee . | . . . Projectile 2 | . 2 . AOE 31 | . 31 . Terrain Rammed . | . . . Walls Destroyed . | . . . Machines Disabled . | . . . Actions | -11 -10 -10 --------- Run | Yrd Mat Sub Total 682 | 43 476 163 Wait 49 | . 17 32 Move 528 | 34 382 112 Hop . | . . . Pick Up 20 | 5 13 2 Fast Attach 1 | . . 1 Attach 20 | 4 14 2 Detach 6 | . 5 1 Swap . | . . . Drop 5 | . 3 2 Fire 53 | . 42 11 Melee . | . . . Ram . | . . . Kick . | . . . Crush . | . . . Escape Stasis . | . . . Rewire . | . . . Trap . | . . . Miscellaneous . | . . . Route ------- -11/Scrapyard -10/Materials (discovered 2 exits: [*Min] / [*Sub]) -10/Subcaves History --------- Turn | Location | Event 7 | -11/Scrapyard | Discovered new exit (range 15) 36 | -11/Scrapyard | Entered Materials 167 | -10/Materials | Core integrity fell below 50% 182 | -10/Materials | Lost 3 parts (1p1n1w) 251 | -10/Materials | Discovered new exit (range 3) 272 | -10/Materials | Discovered new exit (range 10) 309 | -10/Materials | Build established: Mutant 568 | -10/Materials | Entered Subcaves 618 | -10/Subcaves | Shifting Twisted Machinery released Sub. Shrapnel Launcher 677 | -10/Subcaves | Shifting Twisted Machinery released Barrage Gun 727 | -10/Subcaves | Ambushed by swarm of Subdwellers 741 | -10/Subcaves | Core integrity fell below 20% 744 | -10/Subcaves | Destroyed by 78-32U(R) with Subdweller Beam Cannon Last Messages --------------- 00697_ VD-V5F(h) destroyed. 00720_ 8K-R8I(R) destroyed. A mess of Twisted Machinery falls from the cavern ceiling. NU-JXD(R) comes tumbling into view. 00730_ 58-SRO(R) emerges from the Twisted Machinery. 00732_ 78-32U(R) emerges from the Twisted Machinery. 00732_ D2-DLQ(R) emerges from the Twisted Machinery. 00734_ MX-OYM(R) emerges from the Twisted Machinery. 00736_ D2-DLQ(R) knocked back. 00740_ Wheel destroyed. 00740_ Ion Engine destroyed. 00740_ Critical hit (Meltdown: +280). 00740_ Terrain Scanner destroyed. 00741_ Overheating: Energy bleed (-14). 00742_ Lgt. Cannon destroyed. Map ----- +----------------------------------------------------+ | ????????????? ??#"???????????????????????????? | | ?? ??????????? ??""##?????????????????????????? | | ??????????????? ###""#?????????????????????????? | | ???????????????# "##?????? ?????????????????? | | ????????# ? ?? ""##???????????????????????? | | ???????? #?? ""????????????????????????? | | ??????? ?# #????????????????????????? | | ??????? ## ##???????????????????????? | | ?????? ""#???????????????????????? | | ?????????# "##???????????????????????? | | ######?#??# = #?????????????????????????? | | ######?????# *%!#??#??????????????????????? | | ##??#### "" #?????????????????????????? | | ! ##??# ## #### ##???????#????????????????? | | [ ##??# ####????# #??????#?????????????????? | | # ###??# #???????# [ #????????????????????????? | | ###### ######??## #????????????????????????? | | # #### "####???## "#???????#????????????????? | | # ## #?# ##??#&& #????????????????????????? | | # #?# #"###R####??#???????????????????? | | ### """ R*! ##???#?????#????????????? | | ## % R ##?????????????????????? | | R R #######???????????????? | | R ## ## ?????????????? | | # R #???????????????? | | ## @ ###???"???????????? | | ### # ##????????????????? | | ### ## #???? ???????????? | | # # #????????????????? | | ## #????????????????? | | ########### #####????????????? | | # #?????????# #????????????? | | # #???????#?## #????????????? | | # ##??????##?### #????????????? | | #????????????#########????????????? | | ## #?????????????????????????????????? | | #### #????????????????????????????????? | | ##??## #???????????????????????????????? | | ##????## ????????????????????#??????????? | | #####???????## ??????????????????????????????? | | ?????????????? ??????#???????????????????????? | | ?????????????? ????????#??????????????????????? | | ??????????#??? ????????????????????????????????? | | ??????????????##?????????????????????????????????? | | ?????????????????????????????????????????????????? | | ?????????????????????????????????????????????????? | | ?????????????????????????????????????????????????? | | ?????????????????????????????????????????????????? | | ?????????????????????????????????????????????????? | | ?????????????????????????????????????????????????? | +----------------------------------------------------+ Best States ------------- Heat Dissipation 39 Energy Generation 14 Energy Capacity 250 Matter Stores 300 Matter Capacity 300 Sight Range 16 Terrain Scan Range 14 Terrain Scan Density 10 Evasion (%) 44 Item Schematics ----------------- None Robot Schematics ------------------ None Fabricated ------------ Nothing Repaired ---------- Nothing Alien Tech Used ----------------- None Achievements -------------- None Challenges ------------ None Game ------ Seed ConcussiveSurgeRailcannon Manual? 0 Play Time 00:11:47 Cumulative 6.7 hours Start 2025.05.07 @ 15:40:41 End 2025.05.07 @ 15:50:23 Sessions 1 Manual Loads 0 Difficulty Rogue Special Mode None Game No. 11 Rogue 11 Adventurer 0 Explorer 0 Win Type - Total 0 Types 0/0/0/0/0/0/0/0/0/0 Lore% 4 Gallery% 13 Achievement% 15 Wizard Run 0 Options --------- Layout 1 ASCII 0 Keyboard 0 Movement Mouse Keybinds 0 Fullscreen 2 Font 24/Smallcaps Map View 50x35 Zoom Use 0% Tactical HUD 1 Map Filters NONE Filters NONE Steam 1 RUN: 89c5844f-f2c9-4370-ae33-98803530bd4e